bitfinex/quotes_ETHUSD_20250413
["timestamp","ask_amount","ask_price","bid_price","bid_amount"]
[1744534273379,0.62903477,1618.2,1617.9,6.18081]
[1744534273675,6.57987,1618.2,1618.0,3.85]
[1744534273906,1.03923477,1618.1,1618.0,3.85]
[1744534274075,1.03923477,1618.1,1617.8,6.18101]
[1744534274480,1.03923477,1618.1,1617.8,3.0]
[1744534274801,0.4,1618.0,1617.9,6.18068]
[1744534275177,0.62604335,1618.0,1617.9,6.18068]
[1744534276611,0.62604335,1618.0,1617.8,6.1812]
[1744534277193,0.62604335,1618.0,1617.8,6.18101]
[1744534277404,0.62604335,1618.0,1617.9,6.18085]
[1744534278410,0.62604335,1618.0,1617.9,7.19725]
[1744534278779,0.4,1618.0,1617.9,7.19725]
[1744534278988,0.62604335,1618.0,1617.9,6.68085]
[1744534279197,0.4,1618.0,1617.9,6.68085]
[1744534279401,0.4,1618.0,1617.9,8.0685354]
[1744534279594,0.62604335,1618.0,1617.9,8.5849354]
[1744534280013,0.62604335,1618.0,1617.9,8.0685354]
[1744534282116,0.22604335,1618.0,1617.9,8.5849354]
[1744534282520,0.4,1618.3,1618.0,6.18045]
[1744534283031,0.22173935,1618.2,1618.0,6.18045]
[1744534283628,0.22173935,1618.2,1617.9,13.3781]
[1744534283828,0.22173935,1618.2,1617.9,6.68085]
[1744534284050,0.22173935,1618.2,1618.0,6.18034]
[1744534284334,0.22173935,1618.2,1618.1,6.18008]
[1744534285088,0.22173935,1618.2,1617.9,6.6808]
[1744534285311,0.7957,1618.1,1617.9,6.6808]
[1744534286015,0.22173935,1618.0,1617.9,0.5]
[1744534286611,0.22173935,1618.0,1617.9,6.68085]
[1744534287303,7.37508,1618.3,1617.9,6.68085]
[1744534287510,0.22173935,1618.2,1617.9,12.86151]
[1744534288926,0.22173935,1618.2,1617.9,6.68066]
[1744534289223,0.22173935,1618.2,1617.9,12.8613]
[1744534290423,0.22173935,1618.2,1617.9,6.68064]
[1744534290719,6.40147935,1618.2,1617.9,6.68064]
[1744534290929,1.04014794,1618.1,1617.9,0.5]
[1744534291123,0.7925,1618.0,1617.9,0.5]
[1744534291527,1.01423935,1618.0,1617.9,0.5]
[1744534294499,1.41423935,1618.0,1617.9,0.5]
[1744534296244,13.77539935,1618.0,1617.6,6.18198]
[1744534296400,6.18086,1617.9,1617.5,20.911072]
[1744534296744,6.4015776,1617.9,1617.6,3.85]
[1744534297047,0.4,1617.8,1617.6,3.85]
[1744534297331,0.22006075,1617.7,1617.5,20.394672]
[1744534297544,0.22006075,1617.7,1617.5,14.212362]
[1744534297850,0.98696075,1617.7,1617.5,6.175]
[1744534298036,6.18212,1617.6,1617.2,6.69987]
[1744534298206,0.7669,1617.4,1617.1,12.90385]
[1744534298406,0.7669,1617.4,1617.2,3.0]
[1744534298620,0.21874681,1617.3,1617.2,3.0]
[1744534298938,0.7669,1617.4,1617.2,9.18352]
[1744534299101,0.8287,1617.6,1617.3,12.36628]
[1744534299301,0.8287,1617.6,1617.3,12.36615]
[1744534299504,0.8287,1617.8,1617.4,0.5164]
[1744534299705,7.0037,1618.0,1617.7,6.18161]
[1744534300105,6.18101,1617.9,1617.5,6.18233]
[1744534300307,0.8287,1617.8,1617.5,6.18233]
[1744534301743,0.8287,1617.8,1617.5,12.3645]
[1744534302336,0.8287,1617.8,1617.6,6.1819]
[1744534303039,0.8287,1617.8,1617.5,6.18217]
[1744534303241,7.01002,1617.8,1617.4,12.36542]
[1744534303445,8.329108,1617.8,1617.4,6.18257]
[1744534303614,2.147788,1617.8,1617.5,6.18216]
[1744534303816,0.8287,1617.8,1617.5,12.36436]
[1744534306243,0.8287,1617.8,1617.6,6.18182]
[1744534306945,0.21421366,1617.7,1617.6,6.18182]
[1744534308342,6.9942,1618.0,1617.7,6.18135]
[1744534309014,6.9942,1618.0,1617.8,6.18117]
[1744534309331,6.175,1618.0,1617.8,12.36221]
[1744534309538,0.8195,1618.1,1617.8,12.36221]
[1744534310136,1.519423,1618.1,1617.8,6.18104]
[1744534311749,7.699573,1618.1,1617.8,6.18104]
[1744534312855,6.18047,1618.0,1617.6,6.18198]
[1744534313021,7.00036,1617.9,1617.5,18.54164]
[1744534313223,8.318443,1617.9,1617.5,12.35932]
[1744534313556,6.18127,1617.8,1617.5,6.18232]
[1744534313742,7.00036,1617.9,1617.5,12.36453]
[1744534314126,7.00036,1617.9,1617.6,6.18196]
[1744534317049,7.639123,1618.1,1617.7,6.6978]
[1744534317260,0.7639123,1618.0,1617.7,6.6978]
[1744534317619,0.7639123,1618.0,1617.7,6.1814]
[1744534318927,6.9443823,1618.0,1617.7,6.1814]
[1744534319123,6.9443823,1618.0,1617.6,12.88012]
[1744534320558,13.1250523,1618.0,1617.6,12.88012]
[1744534320760,6.9443823,1618.0,1617.6,12.88012]
[1744534321260,0.69443823,1617.9,1617.6,12.88012]
[1744534321462,0.7639123,1618.0,1617.7,6.1815]
[1744534321670,1.459023,1618.1,1617.8,6.18099]
[1744534321864,1.459023,1618.1,1617.8,12.36198]
[1744534322161,0.2020021,1618.0,1617.8,12.36198]
[1744534322561,0.2020021,1618.0,1617.9,6.18085]
[1744534322763,0.6020021,1618.0,1617.9,7.933434]
[1744534323641,0.6020021,1618.0,1617.9,8.39345351]
[1744534323835,0.6020021,1618.0,1617.9,7.933434]
[1744534325660,0.2020021,1618.0,1617.9,10.933434]
[1744534326229,0.4,1618.4,1618.2,6.17936]
[1744534326534,0.4,1618.4,1618.1,6.18005]
[1744534326736,7.319215,1618.4,1618.0,12.27435]
[1744534326932,7.319215,1618.4,1618.0,12.27426]
[1744534327136,0.824,1618.3,1618.0,12.27426]
[1744534327330,0.824,1618.3,1618.0,12.36052]
[1744534327847,0.4,1618.2,1618.1,6.18008]
[1744534331376,0.4,1618.2,1618.0,6.18026]
[1744534331569,6.95084,1618.1,1617.8,3.0]
[1744534331768,0.7706,1618.1,1617.8,9.18106]
[1744534331949,0.7706,1618.1,1617.8,6.18106]
[1744534332548,12.3613,1618.0,1617.6,9.18186]
[1744534332779,0.7706,1617.9,1617.6,9.18186]
[1744534332945,6.18144,1617.8,1617.4,12.80231153]
[1744534333146,0.7706,1617.7,1617.4,12.80231153]
[1744534333362,0.4,1617.6,1617.4,12.80231153]
[1744534333655,0.4,1617.6,1617.4,18.98483153]
[1744534333856,0.4,1617.6,1617.4,12.80214153]
[1744534334058,0.4,1617.6,1617.4,6.18252]
[1744534335380,0.4,1617.6,1617.4,7.15644989]
[1744534335565,0.4,1617.6,1617.5,6.18238]
[1744534335948,0.58662548,1617.6,1617.5,6.18238]
[1744534336688,0.58662548,1617.6,1617.4,7.15644989]
[1744534336851,0.58662548,1617.6,1617.4,6.18252]
[1744534337275,0.58662548,1617.6,1617.5,6.18238]
[1744534338849,0.58662548,1617.6,1617.5,6.69878]
[1744534338850,0.18662548,1617.6,1617.5,6.69878]
[1744534339055,0.18662548,1617.6,1617.5,9.69878]
[1744534339255,0.4,1617.9,1617.8,6.18118]
[1744534339688,0.58347783,1617.9,1617.8,6.18118]
[1744534340592,0.58347783,1617.9,1617.7,6.18146]
[1744534340956,0.58347783,1617.9,1617.6,6.18195]
[1744534341158,0.58347783,1617.9,1617.6,12.36378]
[1744534341359,0.58347783,1617.9,1617.7,12.363]
[1744534341860,0.58347783,1617.9,1617.7,6.1815]
[1744534343382,0.58347783,1617.9,1617.6,6.18196]
[1744534344084,6.76441783,1617.9,1617.5,15.27633]
[1744534344279,12.94547783,1617.9,1617.5,15.27617]
[1744534344484,8.14173561,1617.9,1617.5,21.45838]
[1744534344684,0.7624,1617.8,1617.5,15.27617]
[1744534344881,6.94379,1617.8,1617.5,15.27617]
[1744534345082,0.18472235,1617.7,1617.5,9.18217]
[1744534345284,0.4,1617.6,1617.3,6.69952]
[1744534345486,6.94497,1617.5,1617.1,6.20376]
[1744534345800,13.12773,1617.5,1617.1,6.20376]
[1744534346196,0.4,1617.4,1617.1,6.20376]
[1744534346399,0.58384389,1617.4,1617.1,6.20376]
[1744534346717,0.58384389,1617.4,1617.2,6.18339]
[1744534347017,0.4,1617.4,1617.3,6.18314]
[1744534347310,0.4,1617.4,1617.3,6.69954]
[1744534347486,0.58384389,1617.4,1617.3,7.16419098]
[1744534347660,0.4,1617.4,1617.3,7.16419098]
[1744534347864,0.58384389,1617.4,1617.3,9.11728508]
[1744534348087,0.58384389,1617.4,1617.3,8.6526341]
[1744534348290,0.58384389,1617.4,1617.2,6.18336]
[1744534348596,0.58384389,1617.4,1617.2,12.36668]
[1744534348795,0.58384389,1617.4,1617.2,6.18332]
[1744534349370,0.58384389,1617.4,1617.3,6.18314]
[1744534350796,0.58384389,1617.4,1617.2,12.36664]
[1744534351093,0.58384389,1617.4,1617.3,6.18314]
[1744534351391,0.4,1617.4,1617.3,6.69954]
[1744534351766,0.58267239,1617.4,1617.3,6.69954]
[1744534351967,0.58267239,1617.4,1617.3,9.69954]
[1744534352296,0.18267239,1617.4,1617.3,9.69954]
[1744534352467,0.18267239,1617.4,1617.3,12.66139681]
[1744534352662,0.758,1617.8,1617.5,6.18221]
[1744534352869,0.4,1617.7,1617.5,6.18221]
[1744534354070,0.4,1617.7,1617.5,6.18217]
[1744534355470,0.4,1617.7,1617.6,6.18199]
[1744534358897,0.8059,1617.9,1617.7,6.1814]
[1744534359100,0.7535,1618.1,1617.8,6.18106]
[1744534359472,0.4,1618.0,1617.8,6.18106]
[1744534364096,0.4,1618.0,1617.7,6.1814]
[1744534364405,0.4,1618.0,1617.7,12.36286]
[1744534365209,0.4,1618.0,1617.7,6.1814]
[1744534365396,0.4,1618.0,1617.8,6.18122]
[1744534366275,0.4,1618.0,1617.8,6.18109]
[1744534367017,0.16950355,1617.9,1617.8,6.18109]
[1744534367614,0.4,1617.9,1617.8,6.18109]
[1744534367932,0.56950355,1617.9,1617.8,6.18109]
[1744534369385,0.56950355,1617.9,1617.8,8.035497]
[1744534370587,0.16950355,1617.9,1617.8,8.035497]
[1744534370810,0.7535,1618.1,1617.8,14.216577]
[1744534371018,0.16950355,1617.9,1617.8,12.87857]
[1744534371219,0.4,1618.2,1618.1,6.18008]
[1744534373002,0.4,1618.2,1618.1,6.69648]
[1744534373220,0.4,1618.2,1618.1,9.69648]
[1744534373520,0.8083,1618.7,1618.4,6.17875]
[1744534373815,0.8083,1618.9,1618.6,6.17817]
[1744534374016,0.4,1618.8,1618.7,6.17757]
[1744534375433,0.4,1618.8,1618.5,6.17852]
[1744534375917,0.4,1618.8,1618.5,6.8581595]
[1744534376418,0.8083,1618.7,1618.5,3.6796395]
[1744534376620,0.8083,1618.7,1618.4,6.796755]
[1744534377028,0.4,1618.6,1618.4,6.796755]
[1744534377948,0.4,1618.6,1618.5,6.17856]
[1744534382036,0.55211947,1618.6,1618.5,6.17856]
[1744534382343,0.15211947,1618.6,1618.5,6.17856]
[1744534382509,0.15211947,1618.6,1618.5,7.4760745]
[1744534382834,0.8144,1619.2,1618.9,6.17687]
[1744534383003,0.8144,1619.2,1618.7,6.17776]
[1744534383204,0.8144,1618.9,1618.6,6.17806]
[1744534383406,0.4,1618.8,1618.5,7.4758245]
[1744534383599,0.4,1618.8,1618.5,6.17831]
[1744534383834,0.4,1618.8,1618.6,6.17789]
[1744534384138,0.4,1618.8,1618.7,6.17779]
[1744534393830,0.4,1618.8,1618.7,6.69419]
[1744534394026,0.7696,1619.3,1619.1,6.1761]
[1744534394243,6.94435,1619.5,1619.2,6.17588]
[1744534394438,0.4,1619.4,1619.2,6.17588]
[1744534394621,0.4,1619.4,1619.1,6.1761]
[1744534394816,0.4,1619.4,1619.2,6.17587]
[1744534395021,0.4,1619.4,1619.3,6.1755]
[1744534396320,0.7696,1619.7,1619.3,9.1755]
[1744534396518,0.02,1620.4,1619.7,6.17385]
[1744534396519,0.7696,1619.9,1619.7,6.17385]
[1744534396725,0.7696,1619.9,1619.6,6.17436]
[1744534396939,0.53616035,1619.8,1619.6,6.17436]
[1744534399632,0.53616035,1619.8,1619.2,0.5164]
[1744534399827,0.7984,1619.5,1619.3,3.84]
[1744534400050,7.670611,1619.5,1619.3,3.84]
[1744534400256,7.52352,1619.4,1619.3,3.84]
[1744534400566,7.50968035,1619.4,1619.0,6.1765]
[1744534400765,7.50968035,1619.4,1619.0,12.35291]
[1744534401069,0.93456035,1619.4,1619.1,6.17625]
[1744534401236,0.93456035,1619.4,1619.1,12.3523]
[1744534401437,0.4,1619.3,1619.1,12.3523]
[1744534402034,0.13616035,1619.2,1619.1,12.3523]
[1744534402541,6.97259,1619.7,1619.2,9.17553]
[1744534402860,0.53616035,1619.6,1619.3,6.17549]
[1744534403168,0.53616035,1619.6,1619.3,12.35086]
[1744534403863,0.53616035,1619.6,1619.3,6.17537]
[1744534404033,0.53616035,1619.6,1619.3,12.35074]
[1744534404237,0.53616035,1619.6,1619.4,6.1751]
[1744534404753,0.53616035,1619.6,1619.3,6.17537]
[1744534405170,0.53616035,1619.6,1619.2,9.17584]
[1744534405481,0.53616035,1619.6,1619.3,6.17542]
[1744534405482,1.28703539,1619.6,1619.3,6.17542]
[1744534405770,0.53616035,1619.6,1619.3,6.17542]
[1744534405973,6.71059035,1619.6,1619.2,6.17584]
[1744534406277,6.71059035,1619.6,1619.2,12.35155]
[1744534407583,6.71059035,1619.6,1619.2,6.17571]
[1744534407870,6.17528,1619.4,1619.0,6.17659]
[1744534408071,6.95201,1619.3,1619.1,3.84]
[1744534408278,7.09000787,1619.3,1619.1,3.84]
[1744534408779,6.17588,1619.2,1618.9,6.037]
[1744534409150,0.13799787,1619.1,1618.9,6.037]
[1744534409380,6.17588,1619.2,1618.9,6.037]
[1744534409686,0.7945,1619.0,1618.7,71.36923]
[1744534409841,0.7945,1619.0,1618.8,6.17727]
[1744534410238,0.13799787,1618.9,1618.8,6.17727]
[1744534411059,0.13799787,1618.9,1618.8,6.69367]
[1744534411574,0.13799787,1618.9,1618.8,12.87095]
[1744534411772,6.97043,1619.2,1618.8,19.0159096]
[1744534411975,0.13799787,1619.1,1618.8,12.3222296]
[1744534412189,13.14659,1619.2,1618.8,12.3222296]
[1744534412486,6.31427787,1619.1,1618.7,59.15469]
[1744534412691,6.17669,1619.0,1618.7,59.15469]
[1744534413281,0.13799787,1618.9,1618.7,59.15469]
[1744534413458,0.13799787,1618.9,1618.7,6.17769]
[1744534414282,0.13799787,1618.9,1618.7,6.1776]
[1744534414461,0.13799787,1618.9,1618.8,6.79517]
[1744534414661,0.7945,1619.2,1618.9,6.17682]
[1744534415252,6.97041,1619.2,1618.9,6.17682]
[1744534415445,6.97041,1619.2,1618.8,6.17741]
[1744534415650,6.1765,1619.1,1618.7,6.17773]
[1744534415850,6.98575,1619.0,1618.6,21.8462245]
[1744534416160,13.16261,1619.0,1618.6,15.6680945]
[1744534416371,6.17704,1618.9,1618.6,15.6680945]
[1744534417477,12.35433,1618.9,1618.6,9.037]
[1744534417667,6.17704,1618.9,1618.6,9.037]
[1744534417862,6.17704,1618.9,1618.4,1.134275]
[1744534417863,6.98658,1618.8,1618.4,12.31881]
[1744534418155,6.98658,1618.8,1618.5,3.85]
[1744534418476,6.17779,1618.7,1618.5,3.85]
[1744534418860,12.35586,1618.7,1618.5,3.85]
[1744534419183,0.7959,1618.6,1618.5,3.85]
[1744534419986,0.7959,1618.6,1618.3,6.17927]
[1744534420152,6.17869,1618.5,1618.2,6.14]
[1744534420355,12.3575,1618.5,1618.3,3.85]
[1744534420585,6.17894,1618.4,1618.3,3.85]
[1744534421084,6.17894,1618.4,1618.2,6.14]
[1744534421293,6.97421,1618.6,1618.2,12.31945]
[1744534421458,8.289446,1618.6,1618.2,12.31945]
[1744534422354,0.7959,1618.6,1618.4,6.17863]
[1744534422686,0.7959,1618.7,1618.4,6.17863]
[1744534424093,6.97385,1618.7,1618.3,6.6957]
[1744534424383,13.1519,1618.7,1618.3,6.6957]
[1744534424902,0.7959,1618.7,1618.4,6.1788]
[1744534425202,0.7959,1618.7,1618.4,6.84832]
[1744534427004,0.12924856,1618.6,1618.4,6.84832]
[1744534427399,6.97373,1618.7,1618.4,0.66952]
[1744534427604,6.1783,1618.6,1618.3,6.17928]
[1744534427982,0.12924856,1618.5,1618.3,6.17928]
[1744534428504,13.15175,1618.7,1618.3,6.17928]
[1744534428671,0.12924856,1618.4,1618.3,6.17928]
[1744534428875,13.15175,1618.7,1618.3,8.080813]
[1744534429200,0.12924856,1618.4,1618.3,8.080813]
[1744534429408,6.97373,1618.7,1618.3,8.080723]
[1744534429601,0.12924856,1618.4,1618.3,8.080723]
[1744534429795,6.97373,1618.7,1618.3,14.259913]
[1744534430304,0.12924856,1618.6,1618.4,7.6048913]
[1744534430472,6.97373,1618.7,1618.4,7.6048913]
[1744534430669,6.97373,1618.7,1618.2,12.31935]
[1744534430670,0.12924856,1618.5,1618.2,12.31935]
[1744534430875,6.17819,1618.6,1618.3,6.17915]
[1744534431085,0.1269684,1618.4,1618.3,6.17915]
[1744534431285,6.17819,1618.6,1618.3,6.17915]
[1744534431487,0.1269684,1618.4,1618.3,6.17915]
[1744534431705,6.17819,1618.6,1618.3,7.62281854]
[1744534431907,0.1269684,1618.4,1618.3,7.62281854]
[1744534432104,6.17819,1618.6,1618.3,7.62281854]
[1744534432305,0.1269684,1618.4,1618.3,7.62281854]
[1744534432504,6.17819,1618.6,1618.3,7.62281854]
[1744534432701,0.1269684,1618.4,1618.3,6.17915]
[1744534432869,6.17819,1618.6,1618.3,6.17915]
[1744534433075,0.1269684,1618.4,1618.3,6.17915]
[1744534433268,6.17819,1618.6,1618.3,6.17915]
[1744534433474,0.1269684,1618.4,1618.3,6.17915]
[1744534433675,6.17819,1618.6,1618.3,6.17915]
[1744534433989,0.1269684,1618.4,1618.3,6.17915]
[1744534434200,6.17819,1618.6,1618.3,7.66133998]
[1744534434401,6.97372,1618.7,1618.3,7.66133998]
[1744534434402,0.1269684,1618.4,1618.3,7.66133998]
[1744534434577,6.97372,1618.7,1618.4,6.17892]
[1744534434905,0.7959,1618.7,1618.4,12.35768]
[1744534435811,0.7959,1618.7,1618.4,6.17876]
[1744534435981,0.7959,1618.7,1618.4,12.35756]
[1744534436181,6.17744,1618.8,1618.5,6.17849]
[1744534437981,6.1764,1619.1,1618.7,6.17748]
[1744534438206,0.7866,1619.1,1618.8,6.17741]
[1744534438579,6.17687,1619.0,1618.6,12.83652]
[1744534439095,12.35385,1619.0,1618.6,12.83652]
[1744534439281,6.17687,1619.0,1618.6,19.01451]
[1744534439611,6.17687,1619.0,1618.6,12.83639]
[1744534440012,6.92902,1618.9,1618.6,6.142]
[1744534440710,8.239591,1618.9,1618.6,6.142]
[1744534441887,0.11772789,1618.8,1618.6,6.142]
[1744534442711,0.4,1618.7,1618.4,10.313156]
[1744534442911,0.4,1618.7,1618.3,18.33024383]
[1744534442912,0.7518,1618.6,1618.3,18.33024383]
[1744534443113,0.7518,1618.6,1618.3,6.17914]
[1744534443114,0.86952789,1618.6,1618.3,6.17914]
[1744534443287,7.04784789,1618.6,1618.2,19.01758]
[1744534443487,7.04784789,1618.6,1618.2,14.82416553]
[1744534443690,0.4,1618.5,1618.2,8.64450553]
[1744534444096,0.11772789,1618.4,1618.2,14.82399553]
[1744534444417,0.11772789,1618.4,1618.3,6.17932]
[1744534444788,0.4,1618.4,1618.3,6.17932]
[1744534444986,0.51772789,1618.4,1618.3,6.17932]
[1744534445189,0.51772789,1618.4,1618.3,7.66169955]
[1744534447287,0.8064,1618.7,1618.3,7.66169955]
[1744534447288,0.8064,1618.9,1618.6,6.17794]
[1744534447516,0.8064,1618.9,1618.6,12.35594]
[1744534447706,0.4,1618.8,1618.6,12.35594]
[1744534448419,0.4,1618.8,1618.6,6.17794]
[1744534448586,0.4,1618.8,1618.6,6.69434]
[1744534448787,0.4,1618.8,1618.6,7.981623]
[1744534449284,0.4,1618.8,1618.7,6.17779]
[1744534449511,0.4,1618.8,1618.6,6.17794]
[1744534449715,0.4,1618.8,1618.5,12.35688]
[1744534450486,0.4,1618.8,1618.6,6.17806]
[1744534450687,0.4,1618.8,1618.6,6.17805]
[1744534451314,0.4,1618.8,1618.6,7.413708]
[1744534453425,0.4,1618.8,1618.6,13.591678]
[1744534456022,0.4,1618.8,1618.7,6.69419]
[1744534456321,0.7533,1619.1,1618.8,12.35449]
[1744534456524,0.7533,1619.1,1618.8,6.17723]
[1744534456719,0.4,1619.0,1618.8,6.17723]
[1744534456897,0.51883218,1619.0,1618.8,7.464366]
[1744534457720,0.51883218,1619.0,1618.9,6.17703]
[1744534459232,0.11883218,1619.0,1618.9,6.69343]
[1744534459602,0.7533,1619.3,1619.0,6.17643]
[1744534459805,0.4,1619.2,1619.0,12.35286]
[1744534460005,0.4,1619.2,1619.1,6.17627]
[1744534461831,0.4,1619.2,1619.1,6.64207628]
[1744534463135,0.7677,1619.4,1619.1,6.64207628]
[1744534463497,0.7677,1619.4,1619.1,12.81821628]
[1744534463703,0.4,1619.3,1619.1,6.64194628]
[1744534464231,0.4,1619.3,1619.1,6.17614]
[1744534464530,0.8317,1619.2,1619.0,6.118]
[1744534464744,0.7817,1619.2,1619.0,6.118]
[1744534465748,6.95759,1619.2,1619.0,6.118]
[1744534468105,0.4,1619.1,1618.9,6.17689]
[1744534468833,0.4,1619.1,1618.8,7.464506]
[1744534469705,6.57627,1619.1,1618.8,7.464506]
[1744534470236,0.7783,1618.9,1618.6,16.98666982]
[1744534470436,6.95535,1618.9,1618.6,7.352658]
[1744534470740,6.17758,1618.8,1618.6,6.117]
[1744534470945,6.57758,1618.8,1618.4,12.86213]
[1744534471233,0.4,1618.8,1618.6,6.17803]
[1744534471610,0.4,1618.8,1618.6,12.82892036]
[1744534472001,0.1229537,1618.7,1618.6,12.82892036]
[1744534472206,0.4,1618.8,1618.6,7.9337824]
[1744534472526,0.1229537,1618.7,1618.5,6.1785]
[1744534472940,0.1229537,1618.7,1618.4,12.29588]
[1744534473136,0.9012537,1618.7,1618.5,6.35843]
[1744534473342,0.9012537,1618.7,1618.6,6.17817]
[1744534473343,0.1229537,1618.7,1618.6,6.17817]
[1744534473514,0.4,1618.8,1618.6,6.17817]
[1744534473839,0.1229537,1618.7,1618.6,6.17817]
[1744534474236,0.4,1618.8,1618.6,12.35634]
[1744534474610,0.1229537,1618.7,1618.6,13.666614]
[1744534474833,0.4,1618.8,1618.7,6.17779]
[1744534475234,0.5229537,1618.8,1618.6,1.310274]
[1744534475426,0.5229537,1618.8,1618.6,7.488074]
[1744534475628,0.4,1618.8,1618.7,0.7488074]
[1744534476916,0.4,1618.8,1618.7,6.9265974]
[1744534478539,6.97419,1619.0,1618.7,6.9265974]
[1744534479106,0.4,1618.9,1618.7,6.9265974]
[1744534479607,0.4,1618.9,1618.7,0.7488074]
[1744534479821,0.4,1618.9,1618.6,6.1778]
[1744534482445,6.57703,1618.9,1618.6,6.1778]
[1744534482842,6.57703,1618.9,1618.5,6.1785]
[1744534483012,6.96319,1618.8,1618.4,12.75367041]
[1744534483216,0.7856,1618.8,1618.5,7.45366704]
[1744534483416,6.96308,1618.8,1618.5,7.45366704]
[1744534483616,0.4,1618.7,1618.5,13.63208704]
[1744534483932,0.4,1618.7,1618.5,13.63203704]
[1744534485147,0.4,1618.7,1618.6,7.5413737]
[1744534485342,0.4,1618.7,1618.6,8.1077737]
[1744534485850,0.4,1618.7,1618.6,7.5413737]
[1744534486028,0.51897942,1618.7,1618.6,7.5413737]
[1744534486218,0.51897942,1618.7,1618.6,1.3632037]
[1744534486421,1.1656,1618.7,1618.5,7.45366704]
[1744534486632,1.28457942,1618.7,1618.5,7.45366704]
[1744534487915,1.28457942,1618.7,1618.5,13.63202704]
[1744534488122,0.51897942,1618.7,1618.6,6.17817]
[1744534491355,0.11897942,1618.7,1618.6,6.17817]
[1744534491651,0.11897942,1618.7,1618.6,7.5979937]
[1744534491855,0.4,1618.7,1618.6,7.5979937]
[1744534492057,0.51853776,1618.7,1618.6,7.5979937]
[1744534494459,0.51853776,1618.7,1618.6,10.5979937]
[1744534494630,0.11853776,1618.7,1618.6,15.0143937]
[1744534494828,0.7971,1619.1,1618.9,6.17701]
[1744534495029,0.4,1619.0,1618.9,6.17701]
[1744534498141,0.4,1619.0,1618.9,6.794711]
[1744534500355,0.4,1619.0,1618.9,7.26824262]
[1744534500667,0.4,1619.0,1618.9,13.34024262]
[1744534501561,0.8327,1619.5,1619.2,12.35136]
[1744534501862,0.8327,1619.5,1619.3,6.17547]
[1744534502068,0.4,1619.4,1619.3,6.17547]
[1744534503169,0.4,1619.4,1619.1,6.1762]
[1744534503346,0.8327,1619.3,1619.1,7.411482]
[1744534503767,0.8327,1619.3,1619.1,1.235282]
[1744534504067,0.4,1619.2,1619.0,6.17662]
[1744534504267,6.93208,1619.1,1618.7,12.75315383]
[1744534504572,0.7556,1619.1,1618.9,6.17699]
[1744534504961,0.4,1619.0,1618.9,6.17699]
[1744534505146,0.4,1619.0,1618.9,7.412412]
[1744534505560,1.1556,1619.0,1618.9,1.235422]
[1744534505876,1.1556,1619.0,1618.7,12.3554]
[1744534506042,7.33227,1619.0,1618.6,16.6359337]
[1744534506367,7.33227,1619.0,1618.6,15.21611]
[1744534507871,0.7556,1618.9,1618.6,6.038]
[1744534508043,0.7556,1618.7,1618.6,6.038]
[1744534508246,0.7556,1618.7,1618.4,6.63664041]
[1744534508573,6.17818,1618.6,1618.2,18.39716]
[1744534508741,0.7887,1618.5,1618.3,3.0]
[1744534508943,0.7887,1618.5,1618.2,12.21751]
[1744534509139,6.96726,1618.5,1618.1,6.18007]
[1744534509338,6.96726,1618.5,1618.1,18.39795]
[1744534509566,6.96726,1618.5,1618.1,12.21788]
[1744534509736,6.96726,1618.5,1618.2,3.85]
[1744534510150,6.96726,1618.5,1618.2,10.0297]
[1744534510942,6.96726,1618.5,1618.2,6.1797]
[1744534511477,6.96726,1618.5,1618.1,12.21788]
[1744534511666,6.96726,1618.5,1618.0,6.18046]
[1744534511667,7.36781,1618.4,1618.0,6.18046]
[1744534511861,6.17937,1618.3,1618.1,3.85]
[1744534512043,6.96781,1618.4,1618.1,3.85]
[1744534512477,6.96781,1618.4,1618.0,6.18046]
[1744534512647,0.4,1618.3,1618.0,6.18046]
[1744534512847,0.4,1618.3,1618.0,12.3254196]
[1744534513577,0.4,1618.3,1618.0,6.1449596]
[1744534513889,0.4,1618.3,1618.2,9.1797]
[1744534515775,0.4,1618.3,1618.2,9.3597]
[1744534516991,0.7987,1618.8,1618.5,6.17856]
[1744534517290,1.496284,1618.8,1618.5,6.17856]
[1744534517459,0.4,1618.7,1618.5,6.17856]
[1744534518462,0.4,1618.7,1618.5,12.35691]
[1744534519487,0.4,1618.7,1618.5,6.17835]
[1744534523199,0.4,1618.7,1618.4,6.63288235]
[1744534523489,0.7598,1618.6,1618.3,12.21819]
[1744534523790,12.2157,1619.0,1618.3,12.21819]
[1744534523791,0.7598,1618.8,1618.6,6.17783]
[1744534523993,6.93657,1619.0,1618.7,6.17779]
[1744534524195,6.93657,1619.0,1618.8,6.1771]
[1744534524196,0.7598,1619.0,1618.8,6.1771]
[1744534524499,9.04,1619.3,1618.9,6.17703]
[1744534524500,6.93571,1619.2,1618.9,6.17703]
[1744534524698,6.17632,1619.1,1618.8,6.1771]
[1744534524999,6.17632,1619.1,1618.8,8.073227]
[1744534525181,6.17669,1619.0,1618.7,12.21766]
[1744534525381,0.7598,1618.9,1618.7,12.21766]
[1744534526994,0.7598,1618.9,1618.7,12.21762]
[1744534527201,0.7598,1618.9,1618.8,6.17741]
[1744534527388,0.7598,1618.9,1618.7,18.39527]
[1744534527799,0.7598,1619.0,1618.8,6.17739]
[1744534529864,6.17589,1619.2,1618.8,6.17724]
[1744534530069,13.12799,1619.2,1618.8,6.17724]
[1744534530903,6.1763,1619.1,1618.8,6.17724]
[1744534531082,0.776,1619.0,1618.7,12.21774]
[1744534531584,0.776,1619.0,1618.7,19.917124]
[1744534532104,0.776,1619.0,1618.7,13.739384]
[1744534532303,6.95274,1619.0,1618.7,12.21761]